fUSD/lending_fUSD_20260129
["ID","MTS","AMOUNT","RATE_DAILY","PERIOD"]
[403930562,1769681534839,-500.0,0.00043287,120]
[403930563,1769681534848,-500.0,0.00043287,120]
[403930564,1769681534857,-500.0,0.00043287,120]
[403930565,1769681534866,-500.0,0.00043287,120]
[403930566,1769681534876,-500.0,0.00043287,120]
[403930567,1769681534885,-500.0,0.00043287,120]
[403930568,1769681534895,-500.0,0.00043287,120]
[403930569,1769681534904,-500.0,0.00043287,120]
[403930570,1769681534913,-500.0,0.00043287,120]
[403930571,1769681534923,-500.0,0.00043287,120]
[403930572,1769681534932,-500.0,0.00043287,120]
[403930573,1769681534941,-500.0,0.00043287,120]
[403930574,1769681534951,-500.0,0.00043287,120]
[403930575,1769681534960,-500.0,0.00043287,120]
[403930576,1769681534969,-520.18701646,0.00043287,120]
[403930577,1769681534979,-500.0,0.00043287,120]
[403930578,1769681534988,-500.0,0.00043287,120]
[403930579,1769681534997,-500.0,0.00043287,120]
[403930580,1769681535007,-471.15182993,0.00043287,120]
[403930581,1769681535016,-545.91391549,0.00043287,120]
[403930582,1769681535026,-500.0,0.00043287,120]
[403930583,1769681535035,-574.26362076,0.00043287,120]
[403930584,1769681535045,-500.0,0.00043287,120]
[403930585,1769681535054,-820.61,0.00043287,120]
[403930586,1769681535063,-500.0,0.00043287,120]
[403930587,1769681535072,-820.61,0.00043287,120]
[403930588,1769681535081,-500.0,0.00043287,120]
[403930589,1769681535090,-820.61,0.00043287,120]
[403930590,1769681535098,-188.59,0.00043287,120]
[403930591,1769681535107,-500.0,0.00043287,120]
[403930592,1769681535121,-820.61,0.00043287,120]
[403930593,1769681535130,-500.0,0.00043287,120]
[403930594,1769681535140,-500.0,0.00043287,120]
[403930595,1769681535150,-820.61,0.00043287,120]
[403930596,1769681535162,-500.0,0.00043287,120]
[403930597,1769681535172,-500.0,0.00043287,120]
[403930598,1769681535182,-500.0,0.00043287,120]
[403930599,1769681535191,-500.0,0.00043287,120]
[403930600,1769681535200,-500.0,0.00043287,120]
[403930601,1769681535209,-820.61,0.00043287,120]
[403930602,1769681535218,-500.0,0.00043287,120]
[403930603,1769681535227,-504.62118956,0.00043287,120]
[403930604,1769681535237,-500.0,0.00043287,120]
[403930605,1769681535247,-500.0,0.00043287,120]
[403930606,1769681535256,-500.0,0.00043287,120]
[403930607,1769681535265,-500.0,0.00043287,120]
[403930608,1769681535276,-820.61,0.00043287,120]
[403930609,1769681535285,-644.34975155,0.00043287,120]
[403930610,1769681535294,-500.0,0.00043287,120]
[403930611,1769681535303,-500.0,0.00043287,120]
[403930612,1769681535312,-500.0,0.00043287,120]
[403930613,1769681535320,-500.0,0.00043287,120]
[403930614,1769681535330,-820.61,0.00043287,120]
[403930615,1769681535339,-500.0,0.00043287,120]
[403930616,1769681535348,-500.0,0.00043287,120]
[403930617,1769681535357,-500.0,0.00043287,120]
[403930618,1769681535366,-500.0,0.00043287,120]
[403930619,1769681535374,-820.61,0.00043287,120]
[403930620,1769681535383,-500.0,0.00043287,120]
[403930621,1769681535392,-500.0,0.00043287,120]
[403930622,1769681535401,-598.20740984,0.00043287,120]
[403930623,1769681535411,-500.0,0.00043287,120]
[403930624,1769681535420,-595.5951067,0.00043287,120]
[403930625,1769681535429,-820.61,0.00043287,120]
[403930626,1769681535439,-500.0,0.00043287,120]
[403930627,1769681535448,-287.2152242,0.00043287,120]
[403930628,1769681535609,-212.7847758,0.00043287,120]
[403930629,1769681535619,-500.0,0.00043287,120]
[403930630,1769681535629,-820.61,0.00043287,120]
[403930631,1769681535638,-500.0,0.00043287,120]
[403930632,1769681535648,-500.0,0.00043287,120]
[403930633,1769681535657,-820.61,0.00043287,120]
[403930634,1769681535667,-500.0,0.00043287,120]
[403930635,1769681535677,-500.0,0.00043287,120]
[403930636,1769681535687,-500.0,0.00043287,120]
[403930637,1769681535696,-820.61,0.00043287,120]
[403930638,1769681535705,-500.0,0.00043287,120]
[403930639,1769681535714,-500.0,0.00043287,120]
[403930640,1769681535724,-500.0,0.00043287,120]
[403930641,1769681535733,-820.61,0.00043287,120]
[403930642,1769681535743,-500.0,0.00043287,120]
[403930643,1769681535753,-500.0,0.00043287,120]
[403930644,1769681535762,-500.0,0.00043287,120]
[403930645,1769681535771,-820.61,0.00043287,120]
[403930646,1769681535780,-500.0,0.00043287,120]
[403930647,1769681535789,-418.39312251,0.00043287,120]
[403930648,1769681535810,-81.60687749,0.00043287,120]
[403930649,1769681535819,-625.42877452,0.00043287,120]
[403930650,1769681535828,-820.61,0.00043287,120]
[403930651,1769681535836,-600.11429285,0.00043287,120]
[403930652,1769681535846,-500.0,0.00043287,120]
[403930653,1769681535855,-820.61,0.00043287,120]
[403930654,1769681535864,-500.0,0.00043287,120]
[403930655,1769681535873,-500.0,0.00043287,120]
[403930656,1769681535883,-500.0,0.00043287,120]
[403930657,1769681535892,-820.61,0.00043287,120]
[403930658,1769681535901,-500.0,0.00043287,120]
[403930659,1769681535911,-500.0,0.00043287,120]
[403930660,1769681535920,-542.29300132,0.00043287,120]
[403930661,1769681535930,-53.8210918,0.00043287,120]
[403930662,1769681535948,-766.7889082,0.00043287,120]
[403930663,1769681535957,-500.0,0.00043287,120]
[403930664,1769681535966,-500.0,0.00043287,120]
[403930665,1769681535975,-500.0,0.00043287,120]
[403930666,1769681535983,-169.76679039,0.00043287,120]
[403930667,1769681535997,-650.84320961,0.00043287,120]
[403930668,1769681536006,-500.0,0.00043287,120]
[403930669,1769681536015,-500.0,0.00043287,120]
[403930670,1769681536024,-500.0,0.00043287,120]
[403930671,1769681536036,-500.0,0.00043287,120]
[403930672,1769681536046,-820.61,0.00043287,120]
[403930673,1769681536056,-500.0,0.00043287,120]
[403930674,1769681536065,-500.0,0.00043287,120]
[403930675,1769681536075,-500.0,0.00043287,120]
[403930676,1769681536084,-500.0,0.00043287,120]
[403930677,1769681536094,-500.0,0.00043287,120]
[403930678,1769681536104,-820.61,0.00043287,120]
[403930679,1769681536114,-500.0,0.00043287,120]
[403930680,1769681536126,-500.0,0.00043287,120]
[403930681,1769681536135,-500.0,0.00043287,120]
[403930682,1769681536144,-500.0,0.00043287,120]
[403930683,1769681536153,-500.0,0.00043287,120]
[403930684,1769681536163,-820.61,0.00043287,120]
[403930685,1769681536172,-551.5237586,0.00043287,120]
[403930686,1769681536181,-500.0,0.00043287,120]
[403930687,1769681536192,-500.0,0.00043287,120]
[403930688,1769681536201,-500.0,0.00043287,120]
[403930689,1769681536209,-500.0,0.00043287,120]
[403930690,1769681536218,-820.6878184,0.00043287,120]
[403930691,1769681536227,-500.0,0.00043287,120]
[403930692,1769681536236,-352.12912752,0.00043287,120]
[403930693,1769681536245,-500.0,0.00043287,120]
[403930694,1769681536254,-500.0,0.00043287,120]
[403930695,1769681536263,-592.32643909,0.00043287,120]
[403930696,1769681536272,-500.0,0.00043287,120]
[403930697,1769681536282,-678.18,0.00043287,120]
[403930698,1769681536291,-476.47964678,0.00043287,120]
[403930699,1769681536319,-23.52035322,0.00043287,120]
[403930700,1769681536328,-500.0,0.00043287,120]
[403930701,1769681536337,-500.0,0.00043287,120]
[403930702,1769681536350,-678.18,0.00043287,120]
[403930703,1769681536360,-500.0,0.00043287,120]
[403930704,1769681536370,-500.0,0.00043287,120]
[403930705,1769681536379,-500.0,0.00043287,120]
[403930706,1769681536387,-79.35155218,0.00043287,120]
[403930707,1769681536403,-598.82844782,0.00043287,120]
[403930708,1769681536414,-500.0,0.00043287,120]
[403930709,1769681536423,-500.0,0.00043287,120]
[403930710,1769681536433,-500.0,0.00043287,120]
[403930711,1769681536442,-678.18,0.00043287,120]
[403930712,1769681536452,-415.80983421,0.00043287,120]
[403930713,1769681536466,-84.19016579,0.00043287,120]
[403930714,1769681536475,-500.0,0.00043287,120]
[403930715,1769681536485,-678.18,0.00043287,120]
[403930716,1769681536495,-500.0,0.00043287,120]
[403930717,1769681536504,-500.0,0.00043287,120]
[403930718,1769681536514,-500.0,0.00043287,120]
[403930719,1769681536524,-169.62983419,0.00043287,120]
[403930720,1769681557300,530.0,0.00018,2]
[403930771,1769681914452,530.0,0.00018,2]
[403930825,1769682274100,530.05255,0.00018,2]
[403930826,1769682308191,941855.64470231,0.00018,2]
[403930843,1769682565089,-240.11672646,0.000162,5]
[403930861,1769682632016,-4759.88329011,0.000162,5]
[403930862,1769682632026,-300.0,0.00016998,2]
[403930863,1769682632035,-1200.0,0.00016998,2]
[403930864,1769682632048,-4947.55845066,0.00016999,2]
[403930865,1769682632057,-500.0,0.00016999,2]
[403930866,1769682632066,-235.13974471,0.00016999,2]
[403930867,1769682632076,-241.58020089,0.00016999,2]
[403930868,1769682632085,-500.0,0.00016999,2]
[403930869,1769682632095,-500.0,0.00016999,2]
[403930870,1769682632105,-387.98285763,0.00016999,2]
[403930871,1769682632114,-79644.99495843,0.00017,2]
[403930872,1769682632129,-413.8620027,0.00017,2]
[403930873,1769682632188,-310.2158656,0.00017,2]
[403930882,1769682637860,-295.137,0.00017,2]
[403930883,1769682637916,-170922.5636452,0.00017,2]
[403930884,1769682637926,-160.0,0.00017,2]
[403930885,1769682637936,-200.0,0.000175,6]
[403930897,1769682638301,-500.0,0.000176,6]
[403930899,1769682638312,-800.0,0.000177,6]
[403930901,1769682638322,-1100.0,0.000178,6]
[403930903,1769682638331,-201.01666488,0.0001782,2]
[403930905,1769682638340,-1228.03820374,0.0001782,2]
[403930907,1769682638350,-1001.35373168,0.0001786,2]
[403930909,1769682638359,-200.25,0.0001789,2]
[403930910,1769682638368,-1400.0,0.000179,6]
[403930912,1769682638378,-33110.55361171,0.000179,2]
[403930914,1769682638387,-10000.0,0.000179,2]
[403930916,1769682638397,-387.98761788,0.000179,2]
[403930918,1769682638406,-1304.77687872,0.000179,2]
[403930920,1769682638415,-392.5449,0.000179,2]
[403930922,1769682638424,-500.0,0.00017973,2]
[403930924,1769682638434,-500.0,0.00017973,2]
[403930925,1769682638443,-500.0,0.00017973,2]
[403930927,1769682638452,-500.0,0.00017973,2]
[403930929,1769682638462,-515.88206341,0.00017973,2]
[403930931,1769682638472,-500.0,0.00017973,2]
[403930933,1769682638481,-500.0,0.00017973,2]
[403930935,1769682638489,-500.0,0.00017973,2]
[403930937,1769682638499,-500.0,0.00017973,2]
[403930939,1769682638508,-500.0,0.00017973,2]
[403930940,1769682638517,-501.28378078,0.00017973,2]
[403930942,1769682638526,-500.0,0.00017973,2]
[403930944,1769682638536,-505.86407917,0.00017973,2]
[403930946,1769682638548,-500.0,0.00017973,2]
[403930948,1769682638557,-198.25928404,0.00017973,2]
[403930950,1769682638566,-200.25,0.0001799,2]
[403930952,1769682638575,-200.25,0.0001799,2]
[403930954,1769682638585,-200.25,0.0001799,2]
[403930956,1769682638594,-200.25,0.0001799,2]
[403930957,1769682638603,-155.0,0.00017999,2]
[403930959,1769682638612,-987561.28339994,0.00018,2]
[403930961,1769682638625,-3300144.56314321,0.00018,2]
[403930963,1769682638635,-529.0,0.00018,2]
[403930965,1769682638645,-531.0,0.00018,2]
[403930967,1769682638654,-59240.77485362,0.00018,2]
[403930969,1769682638663,-129570.87237474,0.00018,2]
[403930971,1769682638675,-8795.47431183,0.00018,2]
[403931084,1769682639916,-738.34873444,0.00018,2]
[403931086,1769682639928,-610.49478251,0.00018,2]
[403931088,1769682639939,-3368.67417842,0.00018,2]
[403931090,1769682639950,-354.74582239,0.00018,2]
[403931099,1769682640027,-4827389.62027613,0.00018,2]
[403931102,1769682640038,-20002.33169997,0.00018,2]
[403931123,1769682640239,-8746.99159199,0.00018,2]
[403931130,1769682640294,-86902.29321546,0.00018,2]
[403931426,1769682643235,-8797.54316561,0.00018,2]
[403931496,1769682645990,-3797.60424411,0.00018,2]
[403931497,1769682646098,-515.0410575,0.00018,2]
[403931498,1769682646325,-473.92830005,0.00018,2]
[403931504,1769682842237,-500.0,0.00016899,2]
[403931505,1769682842259,-169.10614062,0.00016899,2]
[403931506,1769682842283,-164.5978213,0.00016899,2]
[403931507,1769682842306,-500.0,0.00016899,2]
[403931508,1769682842329,-321.58800034,0.00016899,2]
[403931509,1769682842351,-2682.49681802,0.00016899,2]
[403931510,1769682842378,-995662.21121972,0.000169,2]
[403931610,1769683601451,-5347.693479,0.00014948,2]
[403931611,1769683601471,-250.0,0.00015024,2]
[403931612,1769683601492,-408.41762251,0.00015062,2]
[403931613,1769683601512,-250.0,0.00015105,2]
[403931614,1769683601532,-408.41762251,0.00015151,2]
[403931615,1769683601552,-1200.0,0.00015162,2]
[403931616,1769683601577,-300.0,0.00015162,2]
[403931617,1769683601597,-276.0,0.00015163,2]
[403931618,1769683601617,-2500.0,0.00015163,2]
[403931619,1769683601638,-502.27711246,0.00015163,2]
[403931620,1769683601659,-600.0,0.00015163,2]
[403931621,1769683601680,-300.0,0.00015163,2]
[403931622,1769683601702,-300.0,0.00015171,2]
[403931623,1769683601724,-300.0,0.00015171,2]
[403931624,1769683601747,-1121.06156478,0.00015172,2]
[403931625,1769683601768,-600.0,0.00015209,2]
[403931626,1769683601791,-683.13833527,0.00015209,2]
[403931627,1769683601812,-300.0,0.00015209,2]
[403931628,1769683601834,-1352.99426347,0.00015239,2]
[403931630,1769683672649,-600.0,0.00015239,2]
[403931631,1769683672672,-250.0,0.00015239,2]
[403931632,1769683672694,-195.0,0.0001524,2]
[403931633,1769683672718,-408.41762251,0.0001524,2]
[403931634,1769683672743,-195.0,0.00015294,2]
[403931635,1769683672764,-348.76,0.00015314,2]
[403931636,1769683672788,-300.0,0.00015338,2]
[403931637,1769683672810,-174.44504984,0.00015338,2]
[403931638,1769683672833,-300.0,0.00015339,2]
[403931639,1769683672854,-500.0,0.00015339,2]
[403931640,1769683672876,-491.28097194,0.00015339,2]
[403931641,1769683672898,-500.0,0.00015339,2]
[403931642,1769683672926,-500.0,0.00015339,2]
[403931643,1769683672950,-495.1299315,0.00015339,2]
[403931644,1769683672976,-500.0,0.00015339,2]
[403931645,1769683672999,-500.0,0.00015339,2]
[403931646,1769683673026,-500.0,0.00015339,2]
[403931647,1769683673051,-500.0,0.00015339,2]
[403931648,1769683673077,-500.0,0.00015339,2]
[403931649,1769683673103,-500.0,0.00015339,2]
[403931650,1769683673129,-500.0,0.00015339,2]
[403931651,1769683673154,-500.0,0.00015339,2]
[403931652,1769683673179,-500.0,0.00015339,2]
[403931653,1769683673203,-500.0,0.00015339,2]
[403931654,1769683673226,-500.0,0.00015339,2]
[403931655,1769683673250,-500.0,0.00015339,2]
[403931656,1769683673275,-500.0,0.00015339,2]
[403931657,1769683673298,-500.0,0.00015339,2]
[403931658,1769683673321,-500.0,0.00015339,2]
[403931659,1769683673343,-500.0,0.00015339,2]
[403931660,1769683673367,-500.0,0.00015339,2]
[403931661,1769683673391,-500.0,0.00015339,2]
[403931662,1769683673414,-500.0,0.00015339,2]
[403931663,1769683673436,-500.0,0.00015339,2]
[403931664,1769683673460,-500.0,0.00015339,2]
[403931665,1769683673485,-500.0,0.00015339,2]
[403931666,1769683673508,-500.0,0.00015339,2]
[403931667,1769683673531,-500.0,0.00015339,2]
[403931668,1769683673553,-500.0,0.00015339,2]
[403931669,1769683673576,-500.0,0.00015339,2]
[403931670,1769683673600,-500.0,0.00015339,2]
[403931671,1769683673623,-500.0,0.00015339,2]
[403931672,1769683673644,-500.0,0.00015339,2]
[403931673,1769683673667,-500.0,0.00015339,2]
[403931674,1769683673690,-500.0,0.00015339,2]
[403931675,1769683673713,-500.0,0.00015339,2]
[403931676,1769683673736,-500.0,0.00015339,2]
[403931677,1769683673759,-500.0,0.00015339,2]
[403931678,1769683673782,-500.0,0.00015339,2]
[403931679,1769683673804,-500.0,0.00015339,2]
[403931680,1769683673829,-500.0,0.00015339,2]
[403931681,1769683673854,-500.0,0.00015339,2]
[403931682,1769683673876,-500.0,0.00015339,2]
[403931683,1769683673904,-500.0,0.00015339,2]
[403931684,1769683673930,-317.06207838,0.00015339,2]
[403931685,1769683673954,-500.0,0.00015339,2]
[403931686,1769683673976,-500.0,0.00015339,2]
[403931687,1769683674004,-500.0,0.00015339,2]
[403931688,1769683674028,-342.84741032,0.00015339,2]
[403931689,1769683674052,-1848.88250829,0.00015339,2]
[403931690,1769683674454,-1848.88250829,0.00015339,2]
[403931691,1769683674478,-1848.88250829,0.00015339,2]
[403931692,1769683674501,-1848.88250829,0.00015339,2]
[403931693,1769683674527,-1848.88250829,0.00015339,2]
[403931694,1769683674549,-1848.88250829,0.00015339,2]
[403931695,1769683674570,-1848.88250829,0.00015339,2]
[403931696,1769683674592,-1848.88250829,0.00015339,2]
[403931697,1769683674616,-1848.88250829,0.00015339,2]
[403931698,1769683674639,-1848.88250829,0.00015339,2]
[403931699,1769683674662,-1848.88250829,0.00015339,2]
[403931700,1769683674683,-1848.88250829,0.00015339,2]
[403931701,1769683674709,-1848.88250829,0.00015339,2]
[403931702,1769683674731,-1848.88250829,0.00015339,2]
[403931703,1769683674752,-1848.88250829,0.00015339,2]
[403931704,1769683674774,-1848.88250829,0.00015339,2]
[403931705,1769683674796,-1848.88250829,0.00015339,2]
[403931706,1769683674818,-1848.88250829,0.00015339,2]
[403931707,1769683674840,-1848.88250829,0.00015339,2]
[403931708,1769683674866,-1848.88250829,0.00015339,2]
[403931709,1769683674888,-1848.88250829,0.00015339,2]
[403931710,1769683674917,-1848.88250829,0.00015339,2]
[403931711,1769683674942,-1848.88250829,0.00015339,2]
[403931712,1769683674964,-1848.88250829,0.00015339,2]
[403931713,1769683674987,-1848.88250829,0.00015339,2]
[403931714,1769683675010,-1848.88250829,0.00015339,2]
[403931715,1769683675034,-1848.88250829,0.00015339,2]
[403931716,1769683675057,-380.63415321,0.00015339,2]
[403931717,1769683675079,-500.0,0.00015339,2]
[403931718,1769683675099,-500.0,0.00015339,2]
[403931719,1769683675122,-1848.88250829,0.00015339,2]
[403931720,1769683675142,-500.0,0.00015339,2]
[403931721,1769683675161,-647.72880195,0.00015339,2]
[403931722,1769683675183,-1848.88250829,0.00015339,2]
[403931723,1769683675203,-413.0049037,0.00015339,2]
[403931724,1769683675226,-1848.88250829,0.00015339,2]
[403931725,1769683675249,-1848.88250829,0.00015339,2]
[403931726,1769683675271,-1848.88250829,0.00015339,2]
[403931727,1769683675292,-1848.88250829,0.00015339,2]
[403931728,1769683675315,-1848.88250829,0.00015339,2]
[403931729,1769683675336,-244.29357054,0.00015339,2]
[403931730,1769683675360,-1848.88250829,0.00015339,2]
[403931731,1769683675381,-1848.88250831,0.00015339,2]
[403931732,1769683675403,-1848.88250831,0.00015339,2]
[403931733,1769683675425,-1848.88250831,0.00015339,2]
[403931734,1769683675447,-1848.88250831,0.00015339,2]
[403931735,1769683675472,-1848.88250831,0.00015339,2]
[403931736,1769683675493,-500.0,0.00015339,2]
[403931737,1769683675513,-166.66,0.0001534,2]
[403931738,1769683675532,-9999.99,0.0001534,2]
[403931739,1769683675551,-24460.0,0.0001534,2]
[403931740,1769683675572,-2886.16,0.0001534,2]
[403931741,1769683675591,-5478.01,0.0001534,2]
[403931742,1769683675612,-56809.72,0.0001534,2]
[403931743,1769683675632,-3826.35,0.0001534,2]
[403931744,1769683675654,-9999.99,0.0001534,2]
[403931745,1769683675674,-342.64,0.0001534,2]
[403931746,1769683675693,-1618.31,0.0001534,2]
[403931747,1769683675713,-861.57,0.0001534,2]
[403931748,1769683675732,-19167.83,0.0001534,2]
[403931749,1769683675752,-150.99,0.0001534,2]
[403931750,1769683675771,-299.99,0.0001534,2]
[403931751,1769683675793,-3697.63,0.0001534,2]
[403931752,1769683675815,-5179.33,0.0001534,2]
[403931753,1769683675834,-18229.74,0.0001534,2]
[403931754,1769683675854,-216.55,0.00015397,2]
[403931755,1769683675874,-871.27,0.000155,2]
[403931756,1769683675897,-395.67,0.000155,2]
[403931757,1769683675922,-150.99,0.000155,2]
[403931758,1769683675942,-9999.99,0.000155,2]
[403931759,1769683675963,-9999.99,0.000155,2]
[403931760,1769683675986,-999.99,0.000155,2]
[403931761,1769683676007,-500.0,0.00015613,2]
[403931762,1769683676027,-151.0,0.00015624,2]
[403931763,1769683676048,-151.0,0.00015624,2]
[403931764,1769683676069,-166.66,0.00015663,2]
[403931765,1769683676090,-504.07,0.00015802,2]
[403931766,1769683676113,-500.0,0.00015887,2]
[403931767,1769683676133,-468.1,0.000159,2]
[403931768,1769683676153,-500.0,0.00015973,2]
[403931769,1769683676173,-500.0,0.00015973,2]
[403931770,1769683676193,-500.0,0.00015973,2]
[403931771,1769683676213,-500.0,0.00015973,2]
[403931772,1769683676232,-539.90934846,0.00015973,2]
[403931773,1769683676253,-500.0,0.00015973,2]
[403931774,1769683676273,-500.0,0.00015973,2]
[403931775,1769683676296,-500.0,0.00015973,2]
[403931776,1769683676316,-500.0,0.00015973,2]
[403931777,1769683676338,-558.48764416,0.00015973,2]
[403931778,1769683676361,-500.0,0.00015973,2]
[403931779,1769683676382,-500.0,0.00015973,2]
[403931780,1769683676401,-500.0,0.00015973,2]
[403931781,1769683676420,-160.19813377,0.00015973,2]
[403931782,1769683676441,-500.0,0.00015973,2]
[403931783,1769683676462,-500.0,0.00015973,2]
[403931784,1769683676481,-160.19589525,0.00015973,2]
[403931785,1769683676503,-160.30040686,0.00015973,2]
[403931786,1769683676525,-500.0,0.00015973,2]
[403931787,1769683676549,-501.08401626,0.00015973,2]
[403931788,1769683676569,-500.0,0.00015973,2]
[403931789,1769683676589,-500.0,0.00015973,2]
[403931790,1769683676609,-425.5374197,0.00015973,2]
[403931791,1769683676629,-500.56757167,0.00015973,2]
[403931792,1769683676649,-500.0,0.00015973,2]
[403931793,1769683676669,-166.19258147,0.00015973,2]
[403931794,1769683676689,-500.0,0.00015973,2]
[403931795,1769683676709,-500.0,0.00015973,2]
[403931796,1769683676729,-162.98402498,0.00015973,2]
[403931797,1769683676748,-500.0,0.00015973,2]
[403931798,1769683676768,-500.0,0.00015973,2]
[403931799,1769683676860,-500.0,0.00015973,2]
[403931800,1769683676882,-500.0,0.00015973,2]
[403931801,1769683676905,-500.0,0.00015973,2]
[403931802,1769683676929,-500.0,0.00015973,2]
[403931803,1769683676951,-500.0,0.00015973,2]
[403931804,1769683676971,-500.0,0.00015973,2]
[403931805,1769683676991,-500.0,0.00015973,2]
[403931806,1769683677011,-500.76243557,0.00015973,2]
[403931807,1769683677031,-2430.96,0.00015973,2]
[403931808,1769683677052,-166.66,0.00015986,2]
[403931809,1769683677073,-150.0,0.00016,2]
[403931810,1769683677095,-434.71,0.00016086,2]
[403931811,1769683677116,-343.2206,0.000161,2]
[403931812,1769683677136,-150.0,0.000161,2]
[403931813,1769683677163,-9999.99,0.00016116,2]
[403931814,1769683677184,-500.0,0.00016161,2]
[403931815,1769683677204,-150.0,0.000162,2]
[403931816,1769683677224,-2430.96,0.00016247,2]
[403931817,1769683677244,-150.0,0.000163,2]
[403931818,1769683677264,-166.66,0.00016309,2]
[403931819,1769683677284,-165.49289447,0.000164,2]
[403931820,1769683677303,-59882.70163603,0.00016419,2]
[403931821,1769683677323,-4815.24,0.00016435,2]
[403931822,1769683677343,-500.0,0.00016435,2]
[403931823,1769683677364,-500.0,0.00016438,2]
[403931824,1769683677383,-304.07871703,0.00016438,2]
[403931825,1769683677404,-1011.64113089,0.00016438,2]
[403931826,1769683677424,-1011.64113089,0.00016438,2]
[403931827,1769683677443,-1011.64113089,0.00016438,2]
[403931828,1769683677463,-1011.64113089,0.00016438,2]
[403931829,1769683677484,-1011.64113089,0.00016438,2]
[403931830,1769683677504,-1011.64113089,0.00016438,2]
[403931831,1769683677524,-1011.64113089,0.00016438,2]
[403931832,1769683677544,-1011.64113089,0.00016438,2]
[403931833,1769683677564,-1011.64113089,0.00016438,2]
[403931834,1769683677585,-1011.64113089,0.00016438,2]
[403931835,1769683677605,-1011.64113089,0.00016438,2]
[403931836,1769683677626,-1011.64113089,0.00016438,2]
[403931837,1769683677647,-1011.64113089,0.00016438,2]
[403931838,1769683677668,-1011.64113089,0.00016438,2]
[403931839,1769683677688,-1011.64113089,0.00016438,2]
[403931840,1769683677710,-1011.64113089,0.00016438,2]
[403931841,1769683677732,-1011.64113089,0.00016438,2]
[403931842,1769683677755,-1011.64113089,0.00016438,2]
[403931843,1769683677776,-1011.64113089,0.00016438,2]
[403931844,1769683677799,-1011.64113089,0.00016438,2]
[403931845,1769683677820,-1011.64113089,0.00016438,2]
[403931846,1769683677841,-1011.64113089,0.00016438,2]
[403931847,1769683677862,-1011.64113089,0.00016438,2]
[403931848,1769683677884,-1011.64113089,0.00016438,2]
[403931849,1769683677908,-1011.64113089,0.00016438,2]
[403931850,1769683677933,-1011.64113089,0.00016438,2]
[403931851,1769683677956,-1011.64113089,0.00016438,2]
[403931852,1769683677978,-1011.64113089,0.00016438,2]
[403931853,1769683678002,-1011.64113089,0.00016438,2]
[403931854,1769683678025,-1011.64113089,0.00016438,2]
[403931855,1769683678047,-1011.64113089,0.00016438,2]
[403931856,1769683678068,-1011.64113089,0.00016438,2]
[403931857,1769683678088,-1011.64113089,0.00016438,2]
[403931858,1769683678111,-1011.64113089,0.00016438,2]
[403931859,1769683678131,-1011.64113089,0.00016438,2]
[403931860,1769683678151,-1011.64113089,0.00016438,2]
[403931861,1769683678172,-1011.64113089,0.00016438,2]
[403931862,1769683678195,-1011.64113089,0.00016438,2]
[403931863,1769683678220,-1011.64113089,0.00016438,2]
[403931864,1769683678241,-1011.64113089,0.00016438,2]
[403931865,1769683678263,-1011.64113089,0.00016438,2]
[403931866,1769683678284,-1011.64113089,0.00016438,2]
[403931867,1769683678308,-1011.64113089,0.00016438,2]
[403931868,1769683678333,-1011.64113089,0.00016438,2]
[403931869,1769683678354,-1011.64113089,0.00016438,2]
[403931870,1769683678374,-1011.64113089,0.00016438,2]
[403931871,1769683678396,-1011.64113089,0.00016438,2]